Cogmind - Beta 11 @@@ ROGUE MODE // 2022.03.25 @ 10:43:11 Player: delet0r Result: Destroyed by S-10 Pest with Light Assault Rifle Performance ------------- Evolutions (0) 0 Regions Visited (1) 200 Robots Destroyed (6) 30 Value Destroyed (165) 165 Prototype IDs (2) 40 Alien Tech Used (0) 0 Bonus (0) 0 TOTAL SCORE: 435 Bonus ------- None Cogmind --------- Core Integrity 0/250 Matter 242/300 Energy 250/250 System Corruption 5% Temperature Cool (0) Movement Rolling (100) Location -10/Materials Parts ------- > --- POWER (1) -------- Ion Engine > --- PROPULSION (2) --- Compact Wheel > --- UTILITY (2) ------ Small Storage Unit Targeting Computer > --- WEAPON (2) ------- Assault Rifle Assault Rifle > --- INVENTORY (8) ---- Large Storage Unit Visual Processing Unit Terrain Scanner Assault Rifle Assault Rifle Assault Rifle Assault Rifle Grenade Launcher Peak State ------------ > --- POWER ------------ Light Nuclear Core > --- PROPULSION ------- Compact Wheel > --- UTILITY ---------- Small Storage Unit Targeting Computer > --- WEAPON ----------- Assault Rifle Assault Rifle > --- INVENTORY -------- Large Storage Unit Assault Rifle Assault Rifle Assault Rifle Assault Rifle [Rating: 8] Favorites ----------- Power Light Nuclear Core Engine Ion Engine Power Core Light Nuclear Core Propulsion Compact Wheel Wheel Compact Wheel Utility Small Storage Unit Device Terrain Scanner Storage Small Storage Unit Processor Targeting Computer Weapon Assault Rifle Energy Gun Medium Laser Ballistic Gun Assault Rifle Build | -11 -10 ------- Run | Scr Mat Slots Evolved . | . . Power . | . . Propulsion . | . . Utility . | . . Weapon . | . . Parts Attached 13 | 6 7 Power 3 | 1 2 Engine 2 | 1 1 Core 1 | . 1 Reactor . | . . Propulsion 3 | 2 1 Treads . | . . Leg . | . . Wheel 3 | 2 1 Hover . | . . Flight . | . . Utility 3 | 1 2 Device 1 | . 1 Storage 1 | 1 . Processor 1 | . 1 Hackware . | . . Protection . | . . Artifact . | . . Weapon 4 | 2 2 Energy Gun 1 | 1 . Energy Cannon . | . . Ballistic Gun 3 | 1 2 Ballistic Cannon . | . . Launcher . | . . Special Weapon . | . . Impact Weapon . | . . Slashing Weapon . | . . Piercing Weapon . | . . Special Melee Weapon . | . . Unidentified Prototypes . | . . Parts Lost 5 | . 5 Power 1 | . 1 Propulsion 2 | . 2 Utility . | . . Weapon 2 | . 2 Highest Loss Streak 4 | . 4 To Critical Strikes . | . . Average Slot Usage (%) 73 | . 73 Engine 4 | . 4 Core 8 | . 8 Wheel 8 | . 8 Storage 14 | . 14 Processor 11 | . 11 Energy Gun 1 | . 1 Ballistic Gun 24 | . 24 Naked Turns . | . . Heaviest Build 14 | 13 14 Greatest Support 26 | 26 26 Greatest Overweight (x) 4 | 1 4 Average Overweight (x) . | . 1 Largest Inventory Capacity 8 | 8 8 Average Capacity 7 | 7 8 Most Carried 8 | . 8 Average Carried 4 | . 4 Final Capacity 8 | 8 8 Final Carried 8 | . 8 Class Distribution -------------------- 100% | Mutant Dominant Class ---------------- Mutant | -10/Materials Resources | -11 -10 ----------- Run | Scr Mat Matter Collected 384 | 262 122 Remotely . | . . Salvage Created 264 | 81 183 Parts 8 | 1 7 Haulers Intercepted . | . . Recyclers Shooed . | . . Parts Field Recycled . | . . Retrieved Matter . | . . Parts Self-Destructed . | . . Prevented . | . . Kills | -11 -10 ------- Run | Scr Mat Combat Hostiles Destroyed 5 | . 5 Guns 5 | . 5 Classes Destroyed 3 | 1 2 Recycler 1 | 1 . Swarmer 1 | . 1 Grunt 4 | . 4 Best Kill Streak 3 | 1 3 Combat Bots Only 3 | . 3 Max Kills in Single Turn 1 | 1 1 Gunslinging . | . . Exploded . | . . Melee . | . . Uniques/NPCs Destroyed . | . . Combat | -11 -10 -------- Run | Scr Mat Damage Taken 705 | . 705 Core 250 | . 250 Absorbed by Shields . | . . Core Remaining (%) 100 | 100 . Volleys Fired 30 | 2 28 Largest 2 | 2 2 Hottest 70 | 70 70 Shots Fired 50 | 4 46 Gun 50 | 4 46 Cannon . | . . Launcher . | . . Special . | . . Kinetic 38 | 2 36 Thermal 12 | 2 10 Explosive . | . . Electromagnetic . | . . Robot Hit Streak 12 | 4 12 Robot Miss Streak 2 | . 2 Penetration Max . | . . Secondary Targets 1 | . 1 Max Gunslinging Chain 1 | . 1 Shots Hit Robots 41 | 4 37 Core Hits 11 | 2 9 Critical Kills . | . . Critical Parts Destroyed . | . . Critical Strikes . | . . Melee Attacks . | . . Impact . | . . Slashing . | . . Piercing . | . . Sneak Attacks . | . . Combat Hostiles . | . . Follow-up Attacks . | . . Damage Inflicted 462 | 38 424 Guns 462 | 38 424 Cannons . | . . Explosions . | . . Melee . | . . Ramming . | . . Kinetic 323 | 13 310 Thermal 139 | 25 114 Explosive . | . . Electromagnetic . | . . Impact . | . . Slashing . | . . Piercing . | . . Highest Corruption 5 | . 5 Average Corruption 4 | . 4 Corruption Purged . | . . Corruption Blocked . | . . Effects 14 | . 14 Matter Fused 7 | . 7 Energy Discharges 2 | . 2 Data Loss (minor) 2 | . 2 Data Loss (major) 1 | . 1 Misfires 2 | . 2 Overload Shots . | . . Overflow Damage . | . . Projectiles . | . . Explosions . | . . Melee . | . . Knockbacks . | . . Impact . | . . Kinetic . | . . Secondary . | . . Self-Inflicted Damage . | . . Shots . | . . Rammed . | . . Targets Rammed . | . . Kicked . | . . Crushed . | . . Highest Temperature 314 | 40 314 Average Temperature 149 | 23 163 Received Heat Transfer 345 | . 345 Effects 1 | . 1 Energy Bleed 1 | . 1 Siege Activations . | . . Robots Corrupted . | . . Combat Hostiles . | . . Parts Fried . | . . Impact Corruptions . | . . Robots Melted . | . . Combat Hostiles . | . . Parts Melted . | . . Heat Transferred 407 | 74 333 Parts Sabotaged . | . . Parts Stolen . | . . Parts Stripped . | . . Power Chain Reactions . | . . Missiles Intercepted . | . . Alert | -11 -10 ------- Run | Scr Mat Peak Influence 115 | 5 115 Initial 3 | . 3 Average 42 | 1 46 Maximum Alert Level . | . . Low Security (%) 100 | 100 100 Level 1 . | . . Level 2 . | . . Level 3 . | . . Level 4 . | . . Level 5 . | . . High Security . | . . Max Security . | . . Squads Dispatched 2 | . 2 Investigation . | . . Extermination . | . . Reinforcement 2 | . 2 Assault . | . . Garrison . | . . Intercept . | . . Searches Triggered . | . . Construction Impeded . | . . Haulers Reinforced . | . . Active Scanning Responses . | . . Cargo Convoy Interrupts . | . . Stealth | -11 -10 --------- Run | Scr Mat Distress Signals 1 | . 1 Communications Jammed . | . . Distress Signals . | . . Times Spotted 19 | . 19 Peak Tracking Total 5 | . 5 Tactical Retreats 1 | . 1 Traps | -11 -10 ------- Run | Scr Mat Traps Triggered 3 | . 3 Indirectly . | . . Trap Hack Attempts . | . . Triggered . | . . Disarmed . | . . Reprogrammed . | . . Reused . | . . Traps Extracted . | . . Installed . | . . Triggered . | . . Machines | -11 -10 ---------- Run | Scr Mat Machines Disabled . | . . Max in Single Turn . | . . Machines Sabotaged . | . . Garrisons Compromised . | . . Overloaded Fab Kills . | . . Hacking | -11 -10 --------- Run | Scr Mat Machines Accessed 6 | . 6 Terminals 6 | . 6 Fabricators . | . . Repair Stations . | . . Recycling Units . | . . Scanalyzers . | . . Garrison Access . | . . Total Hacks 22 | . 22 Successful 12 | . 12 Failed 10 | . 10 Catastrophic . | . . Database Lockouts . | . . Manual 10 | . 10 Terminals 22 | . 22 Fabricators . | . . Repair Stations . | . . Recycling Units . | . . Scanalyzers . | . . Garrison Access . | . . Terminal Hacks 7 | . 7 Prototype ID Bank 1 | . 1 Emergency Access Points 2 | . 2 Alert Level 1 | . 1 Unreport Threat 1 | . 1 Maintenance Status 1 | . 1 Transport Status 1 | . 1 Fabricator Hacks . | . . Repair Station Hacks . | . . Recycling Unit Hacks . | . . Scanalyzer . | . . Garrison Access Hacks . | . . Unauthorized Hacks 5 | . 5 Terminals 5 | . 5 Botnet 5 | . 5 Fabricators . | . . Repair Stations . | . . Recycling Units . | . . Scanalyzers . | . . Garrison Access . | . . Data Cores Recovered . | . . Used . | . . Hacking Detections 5 | . 5 Full Trace Events . | . . Feedback Events . | . . Feedback Blocked . | . . Robot Schematics Acquired . | . . Robots Built . | . . Authchips . | . . Time . | . . Total Robot Build Rating . | . . Part Schematics Acquired . | . . Parts Built . | . . Authchips . | . . Time . | . . Total Part Build Rating . | . . Parts Repaired . | . . Time . | . . Parts Recycled . | . . Recycled Matter . | . . Retrieved Matter . | . . Retrieved Components . | . . Parts Scanalyzed . | . . Part Schematics Acquired . | . . Parts Damaged . | . . Bothacking | -11 -10 ------------ Run | Scr Mat Used RIF Installer . | . . Robots Hacked . | . . Non-combat . | . . Combat . | . . Robot Hacks Applied . | . . Relay Couplers Released . | . . Fabnet Peak Effective % . | . . Robots Rewired . | . . Allies Hacked . | . . Hacks Repelled . | . . Allies | -11 -10 -------- Run | Scr Mat Total Allies . | . . Largest Group . | . . Highest-Rated Group . | . . Highest-Rated Ally . | . . Total Orders . | . . Ally Attacks . | . . Total Damage . | . . Kills . | . . Allies Corrupted . | . . Allies Melted . | . . Intel | -11 -10 ------- Run | Scr Mat Robot Analysis Total . | . . Derelict Logs Recovered . | . . Drone Launches . | . . Drone Recoveries . | . . Exploration | -11 -10 ------------- Run | Scr Mat Turns Passed 788 | 54 734 Spaces Moved 493 | 40 453 Core 155 | 3 152 Treads . | . . Legs . | . . Wheels 338 | 37 301 Hover . | . . Flight . | . . Fastest Speed 50 | 50 90 Average Speed 129 | 89 132 Slowest Speed 250 | 100 250 Overloaded Moves . | . . Propulsion Burnouts . | . . Robots Hopped . | . . Cave-ins Triggered . | . . Exploration Rate (%) 35 | 3 68 Regions Visited 1 Branch Regions . Pre-discovered Areas . | . . Known Exits Taken . | . . Unknown Exits Taken 1 | 1 . Scrap Searched . | . . Spaces Dug . | . . Terrain Destroyed . | . . Melee . | . . Projectile . | . . AOE . | . . Terrain Rammed . | . . Walls Destroyed . | . . Machines Disabled . | . . Actions | -11 -10 --------- Run | Scr Mat Total 593 | 51 542 Wait 48 | 4 44 Move 492 | 39 453 Hop . | . . Pick Up 8 | . 8 Fast Attach 13 | 6 7 Attach . | . . Detach . | . . Swap . | . . Drop 2 | . 2 Fire 30 | 2 28 Melee . | . . Ram . | . . Kick . | . . Crush . | . . Escape Stasis . | . . Rewire . | . . Trap . | . . Miscellaneous . | . . Route ------- -11/Scrapyard -10/Materials (discovered 2 exits: [*Mat] / [*Min]) History --------- Turn | Location | Event 10 | -11/Scrapyard | Discovered new exit (range 16) 55 | -11/Scrapyard | Entered Materials 133 | -10/Materials | Core integrity fell below 50% 175 | -10/Materials | Lost 4 parts (1p2n1w) 215 | -10/Materials | Core integrity fell below 20% 313 | -10/Materials | Build established: Mutant 646 | -10/Materials | Discovered new exit (range 9) 769 | -10/Materials | Discovered new exit (range 6) 789 | -10/Materials | Destroyed by S-10 Pest with Light Assault Rifle Last Messages --------------- Hvy. Ion Engine Cld. Ion Engine 00581_ Acquired Unknown Device. 00589_ K-01 Serf cleans the Terminal. 00601_ System corrupted: Energy discharge (-44). 00630_ System corrupted: Component data lost. 00641_ Acquired Grenade Launcher. 00646_ EXIT=FOUND 00655_ System corrupted: FCS attempts to trigger Assault Rifle. 00655_ System corrupted: Assault Rifle misfires. 00661_ Dropped Lgt. Nuclear Core. 00662_ Acquired Ion Engine. 00700_ System corrupted: FCS attempts to trigger Assault Rifle. 00700_ System corrupted: Assault Rifle misfires. 00717_ Connecting with Terminal... 00757_ System corrupted: Matter fused (-10). 00769_ EXIT=FOUND 00774_ System corrupted: Matter fused (-5). 00787_ S-10 Pest destroyed. 00787_ Switching to secondary target: S-10 Pest. Map ----- +----------------------------------------------------+ | ????????????????????????????????????# %# | | ????????????????????????????????????####### | | ?????????????????????????????????????????# | | ??????????????????????????????????????#??# | | ?????????????????????????????????????????# T | | ??????????????????????????????????????#??# | | ???????????????????????????????????#?????# | | ?????????????????????????????????????????## | | ??????????????????????????????????????????# | | ?????????????????????????? ?????????????# | | ?????????????????????????# #????????????# | | ?????????????????????????# #????????##??# | | ?????????????????????????# #????????? ?# | | ?????????????????????????# #?????????? # | | ?????????????????????????# #??????????? + | | ?????????????????????????# #????????????# | | ?????????????????????????# #????????????# | | ?????????????????????????# #????????????# | | ?????????????????????????# #?????######## | | ?????????????????????????# #?????"!"!""## | | ?????????????###+##??????# #???? "!"!" ## | | ?????????????# ####### ##### ## | | ?????????????# k | | ?????????????# < | | ?????????????# | | ?????????????# ##@####### ## ## | | ???????????????????#s% ????# ########### | | ???????????????????#wa ??# + #?# | | ???????????????????#s ## # #?# | | ???????????????????# """ ## # ! #?# | | ???????????????????# """"" ## #########?# | | ???????????????????# """"" ## ########### | | ???????????????????+ """"" ## | | ???????????????????# "????## | | ???????????????????# ??????# | | ???????????????????# ???????## ###+########## | | ???????????????????# ????????# ## #???? | | ???????????????????########### ##" """ ##??### | | ?????????????????????# # #T """ +#????? | | ?????????????????????# """ + T #" """ ##????? | | ?????????????????????# "Y" # # #?????? | | ?????????????????????# " " ## ## #?????? | | ?????????????????????# ## #########?????? | | ?????????????????????# ## ########??????? | | ?????????????????????######### # #??????? | | ??????????????????????# # # """#??????? | | ??????????????????????#"" + # """#??????? | | ??????????????????????#"Y # # """#??????? | | ??????????????????????#"" # # #??????? | | ??????????????????????# # # #??????? | +----------------------------------------------------+ Best States ------------- Heat Dissipation 25 Energy Generation 14 Energy Capacity 250 Matter Stores 300 Matter Capacity 300 Sight Range 16 Terrain Scan Range 14 Terrain Scan Density 10 Evasion (%) 42 Targeting Accuracy 5 Item Schematics ----------------- None Robot Schematics ------------------ None Fabricated ------------ Nothing Alien Tech Used ----------------- None Achievements -------------- None Challenges ------------ None Game ------ Seed HardcellLongswordRouter Manual? 0 Play Time 00:16:58 Cumulative 35.7 hours Start 2022.03.25 @ 10:27:49 End 2022.03.25 @ 10:43:11 Sessions 1 Manual Loads 0 Difficulty Rogue Special Mode None Game No. 38 Rogue 38 Adventurer 0 Explorer 0 Win Type - Total 0 Types 0/0/0/0/0/0/0/0/0 Lore% 31 Gallery% 30 Achievement% 40 Wizard Run 0 Options --------- ASCII 0 Keyboard 0 Movement Mouse Keybinds 0 Fullscreen 2 Font 18/SmallcapsGlow Map View 76x50 Tactical HUD 1 Map Filters NONE Filters NONE Steam 1 RUN: 77dec259-246a-4a9c-b5c0-d7c2afd674b2